bitfinex-derivatives/quotes_BTCF0:USTF0_20251108
["timestamp","ask_amount","ask_price","bid_price","bid_amount"]
[1762576588816,0.1560419,102650.0,102640.0,0.57372952]
[1762576589019,0.1560419,102650.0,102640.0,0.47623812]
[1762576589221,0.1560419,102650.0,102640.0,0.57372952]
[1762576589618,0.1560419,102650.0,102640.0,0.57472952]
[1762576590015,0.1550419,102650.0,102640.0,0.57472952]
[1762576590214,0.1550419,102650.0,102640.0,0.57672952]
[1762576591424,0.1550419,102650.0,102640.0,0.57472952]
[1762576591626,0.1550419,102650.0,102640.0,0.57572952]
[1762576592230,0.05756,102650.0,102640.0,0.57572952]
[1762576593421,0.01263,102650.0,102640.0,0.68740764]
[1762576593725,0.10547333,102660.0,102650.0,0.1012419]
[1762576593925,0.10547333,102660.0,102650.0,0.57372002]
[1762576594328,0.15743233,102660.0,102650.0,0.57372002]
[1762576594517,0.10547333,102660.0,102650.0,0.57372002]
[1762576594921,0.10647333,102660.0,102650.0,0.57372002]
[1762576598433,0.15843233,102660.0,102650.0,0.57372002]
[1762576599330,0.12348028,102660.0,102650.0,0.57372002]
[1762576599531,0.1584255,102660.0,102650.0,0.57372002]
[1762576600134,0.2558979,102660.0,102650.0,0.57372002]
[1762576600328,0.22095268,102660.0,102650.0,0.57372002]
[1762576600527,0.12348028,102660.0,102650.0,0.57372002]
[1762576601339,0.22095268,102660.0,102650.0,0.57372002]
[1762576601740,0.12348028,102660.0,102650.0,0.57372002]
[1762576602134,0.22095268,102660.0,102650.0,0.57372002]
[1762576602535,0.12348028,102660.0,102650.0,0.57372002]
[1762576603132,0.22095268,102660.0,102650.0,0.57372002]
[1762576603333,0.12348028,102660.0,102650.0,0.57372002]
[1762576603635,0.06708028,102660.0,102650.0,0.57372002]
[1762576605239,0.10210453,102660.0,102650.0,0.57372002]
[1762576605839,0.06708028,102660.0,102650.0,0.57372002]
[1762576606031,0.10209816,102660.0,102650.0,1.11968002]
[1762576606431,0.05013916,102660.0,102650.0,1.11968002]
[1762576606633,0.03611295,102660.0,102650.0,1.11968002]
[1762576606834,0.03611295,102660.0,102650.0,1.36320002]
[1762576607026,0.00111295,102660.0,102650.0,1.36320002]
[1762576607531,0.00111295,102660.0,102650.0,1.11968002]
[1762576608040,0.00111295,102660.0,102650.0,1.36320002]
[1762576608337,0.065439,102670.0,102660.0,0.0974724]
[1762576608537,0.01348,102670.0,102660.0,0.56995052]
[1762576609542,0.12474477,102680.0,102670.0,0.0974629]
[1762576609735,0.12474477,102680.0,102670.0,0.56994102]
[1762576610339,0.12474477,102680.0,102670.0,0.62532718]
[1762576611243,0.12774477,102680.0,102670.0,0.62532718]
[1762576611438,0.07578577,102680.0,102670.0,0.62532718]
[1762576611945,0.07978577,102680.0,102670.0,0.62632718]
[1762576612442,0.13174477,102680.0,102670.0,0.62632718]
[1762576612644,0.07278577,102680.0,102670.0,0.62632718]
[1762576612838,0.07278577,102680.0,102670.0,0.62732718]
[1762576613845,0.01466577,102680.0,102670.0,0.62732718]
[1762576614145,0.065039,102690.0,102670.0,0.62732718]
[1762576614146,0.05857,102690.0,102680.0,0.0974534]
[1762576614445,0.05857,102690.0,102680.0,0.16706428]
[1762576615033,0.1560139,102690.0,102680.0,0.16706428]
[1762576615232,0.17032718,102690.0,102680.0,0.26451768]
[1762576615437,0.17132718,102690.0,102680.0,0.26451768]
[1762576615638,0.07388328,102690.0,102680.0,0.26451768]
[1762576615842,0.07388328,102690.0,102670.0,0.45940531]
[1762576615843,0.05897,102680.0,102670.0,0.45940531]
[1762576616042,0.05897,102680.0,102670.0,0.62646959]
[1762576616238,0.05897,102680.0,102670.0,0.62546959]
[1762576616938,0.05897,102680.0,102670.0,0.62646959]
[1762576617749,0.0361,102680.0,102670.0,0.62646959]
[1762576618048,0.05859,102680.0,102670.0,0.62746959]
[1762576618446,0.01348,102680.0,102670.0,0.62746959]
[1762576619151,0.0361,102680.0,102670.0,0.62746959]
[1762576620147,0.01348,102680.0,102670.0,0.62746959]
[1762576620348,0.0361,102680.0,102670.0,0.62746959]
[1762576620544,0.07250328,102690.0,102680.0,0.0974534]
[1762576620740,0.07250328,102690.0,102680.0,0.62531768]
[1762576620944,0.02739328,102690.0,102680.0,0.70884982]
[1762576621152,0.01431328,102690.0,102680.0,0.70884982]
[1762576621446,0.05859,102700.0,102690.0,0.0974439]
[1762576621649,0.05859,102700.0,102690.0,0.54177604]
[1762576621858,0.05859,102700.0,102690.0,0.3608]
[1762576622153,0.07278404,102700.0,102690.0,0.54177604]
[1762576623042,0.07478404,102700.0,102690.0,0.62530818]
[1762576623450,0.07578404,102700.0,102690.0,0.62530818]
[1762576624450,0.01719404,102700.0,102690.0,0.62530818]
[1762576625346,0.03048404,102700.0,102690.0,0.62530818]
[1762576625545,0.05310404,102700.0,102690.0,0.62530818]
[1762576625747,0.003,102700.0,102690.0,0.70884032]
[1762576626043,0.087869,102720.0,102700.0,0.0974345]
[1762576626250,0.07299905,102720.0,102710.0,0.62528928]
[1762576627352,0.02788905,102720.0,102710.0,0.62528928]
[1762576627551,0.0584,102730.0,102720.0,0.0974155]
[1762576627759,0.0584,102730.0,102720.0,0.62527978]
[1762576627950,0.07253941,102730.0,102720.0,0.62527978]
[1762576628857,0.07453941,102730.0,102720.0,0.62527978]
[1762576629354,0.07553941,102730.0,102720.0,0.62527978]
[1762576629561,0.07553941,102730.0,102720.0,0.52786428]
[1762576629562,0.17294541,102730.0,102720.0,0.52786428]
[1762576629751,0.07553941,102730.0,102720.0,0.52786428]
[1762576630144,0.07553941,102730.0,102720.0,0.62527968]
[1762576630648,0.07553941,102730.0,102720.0,0.70881182]
[1762576631049,0.0584,102740.0,102730.0,0.0974059]
[1762576631247,0.0584,102740.0,102730.0,0.62527018]
[1762576631648,0.07241374,102740.0,102730.0,0.62527018]
[1762576632354,0.0604,102740.0,102730.0,0.62527018]
[1762576632553,0.003,102740.0,102730.0,0.62527018]
[1762576632760,0.003,102740.0,102730.0,1.25448232]
[1762576633158,0.003,102740.0,102730.0,1.17095018]
[1762576633655,0.0614,102740.0,102730.0,0.62527028]
[1762576633860,0.0614,102740.0,102730.0,1.17091028]
[1762576634358,0.07372345,102740.0,102730.0,1.17091028]
[1762576634555,0.07372345,102740.0,102730.0,1.17291028]
[1762576635954,0.07272345,102740.0,102730.0,1.17291028]
[1762576636154,0.07272345,102740.0,102730.0,0.62927028]
[1762576638058,0.53091995,102740.0,102730.0,0.004]
[1762576638263,0.53091995,102740.0,102730.0,0.08753214]
[1762576638456,0.43352345,102740.0,102730.0,0.18493814]
[1762576638657,0.43352345,102740.0,102730.0,0.54573814]
[1762576638658,0.07272345,102740.0,102730.0,0.54573814]
[1762576640361,0.10753492,102740.0,102730.0,0.54573814]
[1762576641063,0.07272345,102740.0,102730.0,0.54573814]
[1762576643465,0.17011995,102740.0,102730.0,0.54573814]
[1762576644667,0.53091995,102740.0,102730.0,0.18493814]
[1762576644854,0.53091995,102740.0,102730.0,0.004]
[1762576645061,0.53091995,102740.0,102730.0,0.08753214]
[1762576645261,0.56573142,102740.0,102730.0,0.08753214]
[1762576646070,0.46833492,102740.0,102730.0,0.18493814]
[1762576646661,0.46833492,102740.0,102730.0,0.18293814]
[1762576647062,0.56573142,102740.0,102730.0,0.18293814]
[1762576647460,0.61769042,102740.0,102730.0,0.18293814]
[1762576648665,0.61769042,102740.0,102730.0,0.18093814]
[1762576648872,0.61769042,102740.0,102730.0,0.08353214]
[1762576649169,0.155536,102730.0,102720.0,0.45835371]
[1762576649364,0.155536,102730.0,102720.0,0.62541799]
[1762576649564,0.19034747,102730.0,102720.0,0.62541799]
[1762576650272,0.19034747,102730.0,102720.0,0.62741799]
[1762576651175,0.155536,102730.0,102720.0,0.62741799]
[1762576651369,0.19034747,102730.0,102720.0,0.62741799]
[1762576651971,0.19034747,102730.0,102720.0,0.62841799]
[1762576652172,0.19034747,102730.0,102720.0,0.46135371]
[1762576652372,0.19034747,102730.0,102720.0,0.62841799]
[1762576652968,0.24230647,102730.0,102720.0,0.62841799]
[1762576653467,0.24230647,102730.0,102720.0,0.08667845]
[1762576653669,0.568295,102730.0,102720.0,0.00314631]
[1762576653867,0.66967036,102730.0,102720.0,0.00314631]
[1762576654069,0.58613822,102730.0,102720.0,0.08667845]
[1762576654369,0.1555455,102720.0,102710.0,0.08353214]
[1762576654873,0.1555455,102720.0,102710.0,0.18095714]
[1762576655074,0.1555455,102720.0,102710.0,0.08353214]
[1762576655473,0.5163455,102720.0,102710.0,0.08353214]
[1762576655672,0.58614772,102720.0,102710.0,0.08353214]
[1762576656068,0.58614772,102720.0,102710.0,0.18095714]
[1762576656469,0.5163455,102720.0,102710.0,0.08353214]
[1762576656677,0.58614772,102720.0,102710.0,0.18095714]
[1762576657372,0.56874239,102720.0,102710.0,0.18095714]
[1762576658576,0.58614772,102720.0,102710.0,0.18095714]
[1762576659376,0.5163455,102720.0,102710.0,0.18095714]
[1762576660285,0.58614772,102720.0,102710.0,0.08353214]
[1762576661085,0.56871428,102720.0,102710.0,0.18095714]
[1762576661884,0.57171428,102720.0,102710.0,0.18095714]
[1762576662279,0.57171428,102720.0,102710.0,0.08353214]
[1762576662480,0.156665,102710.0,102700.0,0.00014631]
[1762576662680,0.19155851,102710.0,102700.0,0.16721059]
[1762576663085,0.19155851,102710.0,102700.0,0.08367845]
[1762576664588,0.19155851,102710.0,102700.0,0.26564499]
[1762576664789,0.19155851,102710.0,102700.0,0.26664499]
[1762576665289,0.19255851,102710.0,102700.0,0.26464499]
[1762576668490,0.19155851,102710.0,102700.0,0.26464499]
[1762576668786,0.09413351,102710.0,102700.0,0.62644499]
[1762576669392,0.05924,102710.0,102700.0,0.62644499]
[1762576669584,0.05924,102710.0,102700.0,0.62744499]
[1762576670484,0.05924,102710.0,102700.0,0.62644499]
[1762576670688,0.06024,102710.0,102700.0,0.62644499]
[1762576671780,0.05924,102710.0,102700.0,0.62644499]
[1762576671981,0.05924,102710.0,102700.0,0.62744499]
[1762576672388,0.05924,102710.0,102700.0,0.57270014]
[1762576673893,0.09413351,102710.0,102700.0,0.57270014]
[1762576674093,0.05924,102710.0,102700.0,0.57170014]
[1762576674293,0.05924,102710.0,102700.0,0.57370014]
[1762576676292,0.09413351,102710.0,102700.0,0.57370014]
[1762576679490,0.19155851,102710.0,102700.0,0.57370014]
[1762576679690,0.55235851,102710.0,102700.0,0.00414631]
[1762576679995,0.55235851,102710.0,102690.0,0.12978946]
[1762576679996,0.1552644,102700.0,102690.0,0.12978946]
[1762576680195,0.1552644,102700.0,102690.0,0.0314]
[1762576680196,0.20764897,102700.0,102690.0,0.0314]
[1762576680596,0.20764897,102700.0,102690.0,0.14271943]
[1762576680793,0.11021457,102700.0,102690.0,0.24016333]
[1762576681098,0.11021457,102700.0,102690.0,0.60096333]
[1762576681294,0.14515493,102700.0,102690.0,0.60096333]
[1762576681998,0.24358933,102700.0,102690.0,0.60096333]
[1762576682295,0.14615493,102700.0,102690.0,0.60096333]
[1762576682596,0.03594036,102700.0,102690.0,0.60196333]
[1762576683095,0.00094036,102700.0,102690.0,0.8714469]
[1762576683288,0.00094036,102700.0,102690.0,0.6280069]
[1762576683488,0.00094036,102700.0,102690.0,0.8714469]
[1762576683689,0.10145217,102710.0,102700.0,0.0974344]
[1762576683890,0.12339217,102710.0,102700.0,0.56955383]
[1762576684090,0.08748217,102710.0,102700.0,0.56955383]
[1762576684299,0.0350976,102710.0,102700.0,0.81295383]
[1762576684493,0.00014631,102710.0,102700.0,0.8389974]
[1762576684691,0.00014631,102710.0,102700.0,0.38684357]
[1762576684692,0.05797631,102710.0,102700.0,0.38684357]
[1762576684885,0.15640131,102710.0,102700.0,0.56955383]
[1762576685090,0.1552644,102700.0,102690.0,0.47211943]
[1762576685298,0.1193839,102690.0,102680.0,0.47233662]
[1762576685488,0.20765847,102690.0,102680.0,0.56979002]
[1762576686198,0.20765847,102690.0,102680.0,0.47233662]
[1762576686501,0.20765847,102690.0,102680.0,0.56979002]
[1762576687098,0.20765847,102690.0,102680.0,0.00021719]
[1762576687403,0.1552739,102690.0,102680.0,0.00021719]
[1762576687605,0.22507612,102690.0,102680.0,0.00021719]
[1762576687805,0.22507612,102690.0,102680.0,0.20899002]
[1762576688002,0.1562739,102690.0,102680.0,0.09767059]
[1762576688202,0.20864589,102690.0,102680.0,0.21099002]
[1762576688798,0.20964589,102690.0,102680.0,0.20899002]
[1762576689505,0.11220199,102690.0,102680.0,0.20899002]
[1762576690005,0.20964589,102690.0,102680.0,0.20899002]
[1762576690807,0.11220199,102690.0,102680.0,0.20899002]
[1762576691006,0.20964589,102690.0,102680.0,0.20899002]
[1762576692307,0.11220199,102690.0,102680.0,0.20899002]
[1762576693609,0.20964589,102690.0,102680.0,0.20899002]
[1762576695199,0.05783,102660.0,102650.0,0.43081357]
[1762576695404,0.05783,102660.0,102640.0,0.04397]
[1762576695405,0.1553119,102650.0,102640.0,0.04397]
[1762576695606,0.58591412,102650.0,102640.0,0.04397]
[1762576696206,0.585985,102650.0,102640.0,0.04397]
[1762576696411,0.56839131,102650.0,102640.0,0.04397]
[1762576697405,0.56839131,102650.0,102640.0,0.02206]
[1762576697605,0.1194314,102640.0,102630.0,0.00014631]
[1762576697814,0.1553214,102640.0,102630.0,0.14161721]
[1762576698611,0.16870115,102640.0,102630.0,0.14161721]
[1762576698813,0.07120975,102640.0,102630.0,0.14161721]
[1762576699016,0.16870115,102640.0,102630.0,0.14161721]
[1762576699209,0.16870115,102640.0,102630.0,0.14261721]
[1762576699610,0.07120975,102640.0,102630.0,0.14261721]
[1762576699806,0.16870115,102640.0,102630.0,0.14361721]
[1762576700511,0.07120975,102640.0,102630.0,0.14361721]
[1762576701116,0.16870115,102640.0,102630.0,0.14361721]
[1762576702410,0.16870115,102640.0,102630.0,0.50441721]
[1762576702716,0.16870115,102640.0,102630.0,0.14361721]
[1762576707319,0.07120975,102640.0,102630.0,0.50441721]
[1762576707619,0.05723975,102640.0,102630.0,0.51718721]
[1762576708622,0.04302088,102650.0,102640.0,0.1559914]
[1762576708817,0.04302088,102650.0,102640.0,0.5167914]
[1762576709017,0.05541909,102650.0,102640.0,0.5167914]
[1762576709518,0.05541909,102650.0,102640.0,0.71389005]
[1762576709718,0.06927909,102650.0,102640.0,0.71389005]
[1762576709914,0.07027909,102650.0,102640.0,0.71389005]
[1762576710822,0.05741909,102650.0,102640.0,0.71389005]
[1762576711018,0.07127909,102650.0,102640.0,0.5167914]
[1762576712314,0.05741909,102650.0,102640.0,0.5167914]
[1762576712517,0.00207088,102650.0,102640.0,0.5167914]
[1762576712719,0.00207088,102650.0,102640.0,0.71389005]
[1762576712917,0.00014631,102660.0,102650.0,0.0974819]
[1762576713122,0.04309631,102660.0,102650.0,1.0614019]
[1762576713316,0.05595636,102660.0,102650.0,1.0614019]
[1762576714226,0.06981636,102660.0,102650.0,1.0499719]
[1762576714427,0.06981636,102660.0,102650.0,0.40653]
[1762576714622,0.06981636,102660.0,102650.0,0.5040119]
[1762576714926,0.06981636,102660.0,102650.0,0.5060119]
[1762576715528,0.06981636,102660.0,102650.0,0.5050119]
[1762576715729,0.05595636,102660.0,102650.0,0.5164419]
[1762576716123,0.05595636,102660.0,102650.0,0.5184419]
[1762576716431,0.05595636,102660.0,102650.0,0.71554055]
[1762576716628,0.01300636,102660.0,102650.0,0.71554055]
[1762576716824,1e-08,102660.0,102650.0,0.71554055]
[1762576717033,1e-08,102660.0,102650.0,0.71454055]
[1762576717225,1e-08,102660.0,102650.0,0.71254055]
[1762576717427,1e-08,102660.0,102650.0,1.55606055]
[1762576717622,1e-08,102660.0,102650.0,1.58210412]
[1762576718022,1e-08,102660.0,102650.0,1.62124014]
[1762576718222,1e-08,102660.0,102650.0,1.42414149]
[1762576718623,1e-08,102660.0,102650.0,1.18062149]
[1762576718932,0.09154577,102710.0,102700.0,0.1548344]
[1762576719128,0.10438039,102710.0,102700.0,0.5156344]
[1762576719825,0.10438039,102710.0,102700.0,0.5039644]
[1762576720024,0.06964462,102710.0,102700.0,0.5039644]
[1762576720331,0.07264462,102710.0,102700.0,0.5092444]
[1762576720525,0.06178462,102710.0,102700.0,0.5092444]
[1762576721230,0.07564462,102710.0,102700.0,0.5039644]
[1762576722335,0.11038039,102710.0,102700.0,0.4582344]
[1762576723933,0.09652039,102710.0,102700.0,0.5138844]
[1762576724233,0.006,102710.0,102700.0,0.5138844]
[1762576724435,0.02312631,102720.0,102710.0,0.1474749]
[1762576724734,0.02312631,102720.0,102710.0,0.5082749]
[1762576725131,0.04491631,102720.0,102710.0,0.5082749]
[1762576725337,0.15502171,102720.0,102710.0,0.5029949]
[1762576725526,0.18975748,102720.0,102710.0,0.1431949]
[1762576725726,0.18975748,102720.0,102710.0,0.1441949]
[1762576725933,0.55055748,102720.0,102710.0,0.1441949]
[1762576726136,0.18975748,102720.0,102710.0,0.1441949]
[1762576726331,0.15502171,102720.0,102710.0,0.1441949]
[1762576726529,0.05760631,102720.0,102710.0,0.1441949]
[1762576726733,0.05760631,102720.0,102710.0,0.1431949]
[1762576726931,0.07032764,102720.0,102710.0,0.5039949]
[1762576727234,0.07032764,102720.0,102710.0,0.5029949]
[1762576727438,0.07032764,102720.0,102710.0,0.5163149]
[1762576732436,0.03584764,102720.0,102710.0,0.71341355]
[1762576732637,0.05763764,102720.0,102710.0,0.71341355]
[1762576734342,0.05763764,102720.0,102710.0,0.64675651]
[1762576737336,0.03584764,102720.0,102710.0,0.64675651]
[1762576737548,0.13326304,102720.0,102710.0,0.64675651]
[1762576737845,0.16765304,102720.0,102710.0,0.5029949]
[1762576738044,0.16765304,102720.0,102710.0,0.40557]
[1762576738248,0.16765304,102720.0,102710.0,0.1421949]
[1762576741051,0.16765304,102720.0,102710.0,0.04477]
[1762576741250,0.20238881,102720.0,102710.0,0.04477]
[1762576741442,0.1546349,102710.0,102700.0,0.40659]
[1762576741641,0.1546349,102710.0,102700.0,0.1432244]
[1762576742245,0.18937067,102710.0,102700.0,0.1432244]
[1762576742442,0.09194577,102710.0,102700.0,0.64815601]
[1762576742750,0.05721,102710.0,102700.0,0.64815601]
[1762576743049,0.04446,102710.0,102700.0,0.64915601]
[1762576743441,0.08317341,102720.0,102710.0,0.1204149]
[1762576743646,0.08317341,102720.0,102710.0,0.63445651]
[1762576743647,0.15702194,102720.0,102710.0,0.63445651]
[1762576743848,0.10481341,102720.0,102710.0,0.63445651]
[1762576744349,0.15702194,102720.0,102710.0,0.63445651]
[1762576744643,0.15802194,102720.0,102710.0,0.63445651]
[1762576744846,0.10581341,102720.0,102710.0,0.5040149]
[1762576745041,0.20322881,102720.0,102710.0,0.5040149]
[1762576745241,0.12328617,102720.0,102710.0,0.5040149]
[1762576745443,0.12328617,102720.0,102710.0,0.5177049]
[1762576746548,0.06507617,102720.0,102710.0,0.64814651]
[1762576746748,0.10001336,102720.0,102710.0,0.65014651]
[1762576746948,0.06507617,102720.0,102710.0,0.65014651]
[1762576747249,0.07062714,102720.0,102710.0,0.65214651]
[1762576747453,0.04780714,102720.0,102710.0,0.65014651]
[1762576747653,0.04780714,102720.0,102710.0,0.65214651]
[1762576749554,0.04780714,102720.0,102710.0,0.65014651]
[1762576749748,0.04780714,102720.0,102710.0,0.65414651]
[1762576751855,0.03508581,102720.0,102710.0,0.65414651]
[1762576752356,0.2547331,102720.0,102710.0,0.5100149]
[1762576752657,0.2197936,102720.0,102710.0,0.05179]
[1762576752849,0.23738729,102720.0,102710.0,0.05179]
[1762576753158,0.23738729,102720.0,102710.0,0.006]
[1762576753763,0.23738729,102720.0,102710.0,0.1472149]
[1762576754055,0.23738729,102720.0,102710.0,0.1462149]
[1762576754359,0.23738729,102720.0,102710.0,0.1452149]
[1762576755056,0.23738729,102720.0,102710.0,0.1462149]
[1762576755858,0.23738729,102720.0,102710.0,0.1442149]
[1762576756159,0.23838729,102720.0,102710.0,0.1442149]
[1762576756658,0.23738729,102720.0,102710.0,0.1442149]
[1762576757053,0.23738729,102720.0,102710.0,0.001]
[1762576757054,0.59818729,102720.0,102710.0,0.001]
[1762576757358,0.59818729,102720.0,102710.0,0.0984249]
[1762576757554,0.13997189,102720.0,102710.0,0.5187049]
[1762576757760,0.07016967,102720.0,102710.0,0.64914651]
[1762576758259,0.07016967,102720.0,102710.0,0.64814651]
[1762576758651,0.07016967,102720.0,102710.0,0.63445651]
[1762576758958,0.07116967,102720.0,102710.0,0.63445651]
[1762576759352,0.07116967,102720.0,102710.0,0.64814651]
[1762576759554,0.12369868,102720.0,102710.0,0.64814651]
[1762576759761,0.22111408,102720.0,102710.0,0.64814651]
[1762576759955,0.22111408,102720.0,102710.0,0.63445651]
[1762576760259,0.52938507,102720.0,102710.0,0.1432149]
[1762576760460,0.52938507,102720.0,102710.0,0.12929867]
[1762576760662,0.52938507,102720.0,102710.0,0.22672357]
[1762576760860,0.16858507,102720.0,102710.0,0.58752357]
[1762576761052,0.07116967,102720.0,102710.0,0.58752357]
[1762576761357,0.16858507,102720.0,102710.0,0.58752357]
[1762576761754,0.52938507,102720.0,102710.0,0.08350867]
[1762576762463,0.1546349,102710.0,102700.0,0.5040182]
[1762576762654,0.20716203,102710.0,102700.0,0.5040182]
[1762576763359,0.20716203,102710.0,102700.0,0.5040244]
[1762576763556,0.20716203,102710.0,102700.0,0.02299]
[1762576763761,0.1546444,102700.0,102690.0,0.63466623]
[1762576764060,0.1546444,102700.0,102690.0,0.50417481]
[1762576764061,0.2421819,102700.0,102690.0,0.50417481]
[1762576764565,0.1447475,102700.0,102690.0,0.50417481]
[1762576764756,0.2421819,102700.0,102690.0,0.63466623]
[1762576765256,0.2421819,102700.0,102690.0,0.63666623]
[1762576765855,0.2421819,102700.0,102690.0,0.27586623]
[1762576766059,0.2071669,102700.0,102690.0,0.14737481]
[1762576767067,0.2071669,102700.0,102690.0,0.27386623]
[1762576767365,0.2071669,102700.0,102690.0,0.14437481]
[1762576770968,0.2071669,102700.0,102690.0,0.04693631]
[1762576771260,0.58524662,102700.0,102690.0,0.14438021]
[1762576771468,0.22444662,102700.0,102690.0,0.14438021]
[1762576772065,0.22444662,102700.0,102690.0,0.04693631]
[1762576772269,0.58524662,102700.0,102690.0,0.00114631]
[1762576772871,0.60221716,102700.0,102690.0,0.00114631]
[1762576773569,0.60321716,102700.0,102690.0,0.00114631]
[1762576773972,0.1547834,102680.0,102670.0,0.38308]
[1762576774166,0.20720563,102680.0,102670.0,0.38308]
[1762576775161,0.1547929,102670.0,102660.0,0.50180861]
[1762576775470,0.18971515,102670.0,102660.0,0.50180861]
[1762576775672,0.18971515,102670.0,102660.0,0.14100861]
[1762576775966,0.18971515,102670.0,102660.0,0.04354231]
[1762576776281,0.56793367,102670.0,102660.0,0.04354231]
[1762576776469,0.56793367,102670.0,102660.0,0.14101471]
[1762576776866,0.20713367,102670.0,102660.0,0.14101471]
[1762576777065,0.56793367,102670.0,102660.0,0.14101471]
[1762576777265,0.56793367,102670.0,102660.0,0.04354231]
[1762576777466,0.56793367,102670.0,102660.0,0.14101471]
[1762576778068,0.56793367,102670.0,102660.0,0.04354231]
[1762576779471,0.56793367,102670.0,102660.0,0.14101471]
[1762576780973,0.56893367,102670.0,102660.0,0.14101471]
[1762576781161,0.60378278,102670.0,102660.0,0.14101471]
[1762576781564,0.60278278,102670.0,102660.0,0.14101471]
[1762576782179,0.60378278,102670.0,102660.0,0.14101471]
[1762576782370,0.60378278,102670.0,102660.0,0.22460004]
[1762576783075,0.13222988,102670.0,102660.0,0.68248537]
[1762576783275,0.0216,102670.0,102660.0,0.68248537]
[1762576783470,0.09225993,102680.0,102670.0,0.1507929]
[1762576783670,0.09225993,102680.0,102670.0,0.59517823]
[1762576784578,0.09225993,102680.0,102670.0,0.6421444]
[1762576784878,0.18971333,102680.0,102670.0,0.6421444]
[1762576785077,0.19071333,102680.0,102670.0,0.6421444]
[1762576785575,0.19171333,102680.0,102670.0,0.6421444]
[1762576786668,0.09425993,102680.0,102670.0,0.6421444]
[1762576786872,0.19171333,102680.0,102670.0,0.5446815]
[1762576787071,0.19171333,102680.0,102670.0,0.5025029]
[1762576787369,0.1552329,102670.0,102660.0,0.40528231]
[1762576787974,0.19008283,102670.0,102660.0,0.02318231]
[1762576788183,0.2424236,102670.0,102660.0,0.00024231]
[1762576789483,0.6042236,102670.0,102660.0,0.00024231]
[1762576789976,0.57037367,102670.0,102660.0,0.00024231]
[1762576792381,0.47291077,102670.0,102660.0,0.04448231]
[1762576792588,0.04612,102670.0,102660.0,0.64680621]
[1762576792781,0.08100642,102670.0,102660.0,0.64680621]
[1762576792984,0.05938642,102670.0,102660.0,0.64680621]
[1762576793182,0.0245,102670.0,102660.0,0.64680621]
[1762576793388,0.05938642,102670.0,102660.0,0.64680621]
[1762576794277,0.05938642,102670.0,102660.0,0.51625471]
[1762576794594,0.05738642,102670.0,102660.0,0.7132018]
[1762576795092,0.17646932,102670.0,102660.0,0.7132018]
[1762576795298,0.17646932,102670.0,102660.0,0.7152018]
[1762576795490,0.07900642,102670.0,102660.0,0.7172018]
[1762576797102,0.17646932,102670.0,102660.0,0.7172018]
[1762576797389,0.07900642,102670.0,102660.0,0.7172018]
[1762576797592,0.05234077,102680.0,102670.0,0.1507529]
[1762576797796,0.03494185,102680.0,102670.0,0.5115529]
[1762576800098,0.18928525,102680.0,102670.0,0.41409]
[1762576800304,0.24162602,102680.0,102670.0,0.04401]
[1762576800497,0.20668417,102680.0,102670.0,0.02133]
[1762576800704,0.1543529,102670.0,102660.0,0.50252441]
[1762576800906,0.24166521,102670.0,102660.0,0.50252441]
[1762576802495,0.08731231,102670.0,102660.0,0.51602441]
[1762576802693,0.03497154,102680.0,102670.0,0.1507529]
[1762576802894,0.17656494,102680.0,102670.0,0.70849999]
[1762576803097,0.18931494,102680.0,102670.0,0.1414729]
[1762576803297,0.1416029,102670.0,102660.0,0.50251831]
[1762576803503,0.18932444,102670.0,102660.0,0.50251831]
[1762576803700,0.18932444,102670.0,102660.0,0.14171831]
[1762576803905,0.55012444,102670.0,102660.0,0.14171831]
[1762576804206,0.18932444,102670.0,102660.0,0.14171831]
[1762576804407,0.55012444,102670.0,102660.0,0.15521831]
[1762576804708,0.20669367,102670.0,102660.0,0.14171831]
[1762576804909,0.20669367,102670.0,102660.0,0.14571831]
[1762576805511,0.20669367,102670.0,102660.0,0.14371831]
[1762576805808,0.20669367,102670.0,102660.0,0.14171831]
[1762576806009,0.10923077,102670.0,102660.0,0.50251831]
[1762576806903,0.20669367,102670.0,102660.0,0.50251831]
[1762576807410,0.20669367,102670.0,102660.0,0.14171831]
[1762576807607,0.08733366,102670.0,102660.0,0.51601831]
[1762576809205,0.22893656,102670.0,102660.0,0.51601831]
[1762576809508,0.10923077,102670.0,102660.0,0.51601831]
[1762576809714,0.2416944,102670.0,102660.0,0.51601831]
[1762576810217,0.20669367,102670.0,102660.0,0.51601831]
[1762576810409,0.10923077,102670.0,102660.0,0.51601831]
[1762576810610,0.1442338,102670.0,102660.0,0.51601831]
[1762576810813,0.20669357,102670.0,102660.0,0.51601831]
[1762576811011,0.10923077,102670.0,102660.0,0.51601831]
[1762576811206,0.14423619,102670.0,102660.0,0.51601831]
[1762576811512,0.20669357,102670.0,102660.0,0.50251831]
[1762576811711,0.14423665,102670.0,102660.0,0.50251831]
[1762576811912,0.09189588,102670.0,102660.0,0.50251831]
[1762576812112,0.09189588,102670.0,102660.0,0.51601831]
[1762576812511,0.03500588,102670.0,102660.0,0.51601831]
[1762576812713,0.05234077,102680.0,102670.0,0.1507528]
[1762576812903,0.08735366,102680.0,102670.0,0.70849989]
[1762576814006,0.08735366,102680.0,102670.0,0.71049989]
[1762576814408,0.08735366,102680.0,102670.0,0.71249989]
[1762576817023,0.03501289,102680.0,102670.0,0.71249989]
[1762576818027,0.05248708,102690.0,102670.0,0.71249989]
[1762576818028,0.08749997,102690.0,102680.0,0.1549634]
[1762576818216,0.08749997,102690.0,102680.0,0.5157634]
[1762576820421,0.10921997,102690.0,102680.0,0.5157634]
[1762576821113,0.0568792,102690.0,102680.0,0.5157634]
[1762576821313,0.10921997,102690.0,102680.0,0.5157634]
[1762576822619,0.01749997,102700.0,102690.0,0.0974439]
[1762576822814,0.03024997,102700.0,102690.0,0.4582439]
[1762576823121,0.07438997,102700.0,102690.0,0.4582439]
[1762576823825,0.07638997,102700.0,102690.0,0.4582439]
[1762576824923,0.07638997,102700.0,102690.0,0.65519099]
[1762576825124,0.05396997,102700.0,102690.0,0.65519099]
[1762576825319,0.07638997,102700.0,102690.0,0.65519099]
[1762576828411,0.01475,102700.0,102690.0,0.65519099]
[1762576828614,0.03706,102700.0,102690.0,0.65519099]
[1762576830023,0.01475,102700.0,102690.0,0.65519099]
[1762576830721,0.05806,102700.0,102690.0,0.65519099]
[1762576834426,0.1554944,102700.0,102690.0,0.4582439]
[1762576834929,0.05806,102700.0,102690.0,0.4582439]
[1762576835129,0.1554944,102700.0,102690.0,0.4582439]
[1762576835727,0.1534239,102690.0,102680.0,0.24719971]
[1762576836125,0.1534239,102690.0,102680.0,0.09759971]
[1762576837525,0.05598,102690.0,102680.0,0.09759971]
[1762576838424,0.1534239,102690.0,102680.0,0.09759971]
[1762576839534,0.05598,102690.0,102680.0,0.09759971]
[1762576839729,0.05598,102690.0,102680.0,0.6553468]
[1762576840129,0.1534239,102690.0,102680.0,0.2945468]
[1762576840834,0.05598,102690.0,102680.0,0.2945468]
[1762576842631,0.10848422,102690.0,102680.0,0.6553468]
[1762576843433,0.08748422,102690.0,102680.0,0.6553468]
[1762576844437,0.06517422,102690.0,102680.0,0.6553468]